Cogmind - Beta 16.1 @@@ ROGUE MODE // 2026.04.07 @ 19:12:14 Player: Lazz Result: Self-destructed Performance ------------- Evolutions (3) 1500 Regions Visited (6) 1200 Robots Destroyed (48) 240 Value Destroyed (1542) 1542 Prototype IDs (1) 20 Alien Tech Used (0) 0 Bonus (768) 768 TOTAL SCORE: 5270 Bonus ------- High Alert Combat Kills 33 Follower Combat Kills 35 Entered Garrisons 200 Used RIF Installer 500 Cogmind --------- Core Integrity 12/700 Matter 54/300 Energy 100/100 System Corruption 1% Temperature Cool (0) Movement Core (50) Location -7/Storage Parts ------- > --- POWER (1) -------- (None) > --- PROPULSION (4) --- (None) > --- UTILITY (5) ------ Machine Analyzer Advanced Visual Processing Unit Improved Signal Interpreter Hacking Suite > --- WEAPON (3) ------- (None) > --- INVENTORY (5) ---- Huge Storage Unit Compact Matter Pod (150) Improved Salvage Targeting Computer Remote Datajack Peak State ------------ > --- POWER ------------ Light Nuclear Core > --- PROPULSION ------- Light Treads Advanced Treads Armored Huge Wheel > --- UTILITY ---------- High-capacity Storage Unit Advanced Visual Processing Unit Improved Sensor Array Improved Signal Interpreter Improved Salvage Targeting Computer > --- WEAPON ----------- Pulse Rifle Heavy Assault Rifle Gauss Rifle > --- INVENTORY -------- Improved Ion Engine Light Nuclear Core Light Nuclear Core Light Nuclear Core Carbon-fiber Leg Improved Heat Sink Huge Storage Unit Compact Matter Pod Improved Sensor Array Improved Signal Interpreter Improved Salvage Targeting Computer Improved Salvage Targeting Computer Improved Propulsion Shielding Improved Light Armor Plating Hacking Suite Pulse Rifle Assault Rifle Light Assault Rifle Grenade Launcher [Rating: 43] Favorites ----------- Power Light Nuclear Core Engine Light Ion Engine Power Core Light Nuclear Core Propulsion Advanced Treads Treads Advanced Treads Wheel Armored Huge Wheel Utility Improved Signal Interpreter Device Sensor Array Storage High-capacity Storage Unit Processor Improved Signal Interpreter Hackware Hacking Suite Protection Improved Propulsion Shielding Weapon Pulse Rifle Energy Gun Pulse Rifle Ballistic Gun Heavy Assault Rifle Launcher Grenade Launcher Special Weapon Mining Laser Build | -11 -10 -9 -8 -8 -7 -7 ------- Run | Yrd Mat Mat Mat Gar Fac Sto Slots Evolved 6 | . . 2 2 . 2 . Power . | . . . . . . . Propulsion 2 | . . . 1 . 1 . Utility 3 | . . 2 . . 1 . Weapon 1 | . . . 1 . . . Parts Attached 59 | 7 3 11 10 15 6 7 Power 9 | 1 . 1 1 5 1 . Engine 3 | 1 . 1 . 1 . . Core 6 | . . . 1 4 1 . Reactor . | . . . . . . . Propulsion 13 | 2 . 2 1 3 2 3 Treads 11 | 2 . 2 1 1 2 3 Leg . | . . . . . . . Wheel 2 | . . . . 2 . . Hover . | . . . . . . . Flight . | . . . . . . . Utility 23 | 2 2 4 5 4 3 3 Device 7 | 1 . 2 1 2 1 . Storage 5 | 1 1 1 1 1 . . Processor 6 | . 1 1 2 . 1 1 Hackware 2 | . . . . . 1 1 Protection 3 | . . . 1 1 . 1 Artifact . | . . . . . . . Weapon 14 | 2 1 4 3 3 . 1 Energy Gun 5 | . . 2 2 1 . . Energy Cannon . | . . . . . . . Ballistic Gun 6 | 2 . 1 . 2 . 1 Ballistic Cannon . | . . . . . . . Launcher 1 | . . 1 . . . . Special Weapon 2 | . 1 . 1 . . . Impact Weapon . | . . . . . . . Slashing Weapon . | . . . . . . . Piercing Weapon . | . . . . . . . Special Melee Weapon . | . . . . . . . Unidentified Prototypes 1 | . . . . . . 1 Parts Lost 31 | . . 1 . 12 1 17 Power 4 | . . . . 2 . 2 Propulsion 10 | . . . . 3 . 7 Utility 7 | . . 1 . 2 1 3 Weapon 10 | . . . . 5 . 5 Highest Loss Streak 17 | . . 1 . 6 1 17 To Critical Strikes . | . . . . . . . Average Backups 14 | 1 6 8 14 13 18 13 Power 1 | . . . . 1 3 1 Propulsion 1 | . 1 1 2 1 1 1 Utility 6 | . 2 2 6 6 9 8 Weapon 3 | 1 3 5 6 4 3 . Tool/Special . | . . . . . . . Unused Backups 12 | . . 1 . . 2 9 Power 1 | . . . . . . 1 Propulsion 2 | . . . . . 1 1 Utility 7 | . . 1 . . . 6 Weapon 1 | . . . . . 1 . Tool/Special 1 | . . . . . . 1 Average Slot Usage (%) 92 | . 100 99 99 88 91 68 Engine 3 | . 14 11 8 . . . Core 5 | . . . . 8 7 4 Treads 17 | . 28 22 27 14 15 13 Wheel 4 | . . . . 5 7 3 Device 6 | . 7 14 6 2 5 2 Storage 8 | . 14 11 9 9 7 5 Processor 18 | . 6 18 18 18 20 16 Hackware 1 | . . . . . 2 7 Protection 1 | . . . 2 4 . . Energy Gun 10 | . . 4 25 17 6 3 Ballistic Gun 11 | . 23 15 . 7 14 7 Peak Build Rating 43 | 7 8 21 33 37 43 42 Average Rating 29 | 6 7 12 29 30 41 30 On Entrance 21 | . 7 8 20 33 37 42 Avg Prop Armor Cover (%) 12 | . . . . 9 15 15 Naked Turns . | . . . . . . . Heaviest Build 96 | 13 27 32 96 96 57 56 Greatest Support 100 | 40 40 44 66 66 42 100 Greatest Overweight (x) 9 | 2 . . 1 9 2 1 Average Overweight (x) 1 | . . . . 2 1 . Largest Inventory Capacity 25 | 8 15 25 25 25 20 20 Average Capacity 18 | 7 10 15 15 22 20 17 Most Carried 20 | 4 9 16 16 20 20 18 Average Carried 14 | 1 6 8 14 14 18 13 Final Capacity 25 | 8 15 15 25 20 20 5 Final Carried 19 | 4 9 15 16 19 18 4 Class Distribution -------------------- 36% | Scavenger-Skirmisher 22% | Mutant 20% | Skirmisher 12% | Scavenger-Tank 6% | Tank Dominant Class ---------------- Mutant | -10/Materials Skirmisher | -9/Materials Skirmisher | -8/Materials Scavenger-Tank | -8/Garrison Scavenger-Skirmisher | -7/Factory Scavenger-Skirmisher | -7/Storage Resources | -11 -10 -9 -8 -8 -7 -7 ----------- Run | Yrd Mat Mat Mat Gar Fac Sto Matter Collected 1523 | 368 6 290 206 513 132 8 Remotely . | . . . . . . . Salvage Created 1573 | 144 29 321 206 610 132 131 Parts 92 | 15 2 28 8 27 7 5 Haulers Intercepted 1 | . . 1 . . . . Recyclers Shooed . | . . . . . . . Parts Field Recycled . | . . . . . . . Retrieved Matter . | . . . . . . . Parts Self-Destructed . | . . . . . . . Prevented . | . . . . . . . Parts Restored . | . . . . . . . Kills | -11 -10 -9 -8 -8 -7 -7 ------- Run | Yrd Mat Mat Mat Gar Fac Sto Combat Hostiles Destroyed 35 | . . 8 5 17 3 2 Guns 31 | . . 6 4 16 3 2 AOE 3 | . . 2 . 1 . . Classes Destroyed 12 | 3 1 5 . 1 1 1 Worker 3 | 2 . 1 . . . . Builder 1 | . . 1 . . . . Tunneler 3 | 3 . . . . . . Hauler 1 | . . 1 . . . . Recycler 1 | 1 . . . . . . Operator 1 | . . . . . . 1 Watcher 3 | . 1 2 . . . . Swarmer 9 | . . 4 . 5 . . Grunt 13 | . . 3 2 8 . . Sentry 8 | . . 1 3 2 . 2 Hunter 3 | . . . . 2 1 . Programmer 2 | . . . . . 2 . Best Kill Streak 5 | 3 1 5 2 3 1 2 Combat Bots Only 4 | . . 4 2 3 1 2 Max Kills in Single Turn 3 | 1 1 3 1 1 1 1 Gunslinging . | . . . . . . . Exploded 2 | . . 2 . 1 . . Melee . | . . . . . . . Uniques/NPCs Destroyed . | . . . . . . . Combat | -11 -10 -9 -8 -8 -7 -7 -------- Run | Yrd Mat Mat Mat Gar Fac Sto Hostile Shots Fired 594 | . . 43 29 149 21 352 Missed 194 | . . 15 10 33 6 130 Hits 400 | . . 28 19 116 15 222 Projectile 400 | . . 28 19 116 15 222 Critical Strikes 11 | . . 2 1 6 2 . Actively Blocked 1 | . . . . . 1 . Damage Taken 4912 | . . 334 280 1969 194 2135 Core 1221 | . . 79 42 412 43 645 Absorbed by Shields . | . . . . . . . Redirected to Shielding 313 | . . . 39 138 32 104 Regen/Repaired (Parts) 114 | . . . . . 114 . Core Remaining (%) 74 | 100 100 80 . 17 . . Volleys Fired 172 | 11 4 40 15 68 20 14 Largest 3 | 2 2 2 3 3 3 3 Hottest 189 | 40 100 126 189 189 114 121 Shots Fired 376 | 22 7 74 34 163 48 28 Gun 351 | 22 6 67 31 153 48 24 Cannon . | . . . . . . . Launcher 6 | . . 2 . . . 4 Special 19 | . 1 5 3 10 . . Kinetic 188 | 22 6 57 . 47 34 22 Thermal 182 | . 1 15 34 116 14 2 Explosive 6 | . . 2 . . . 4 Electromagnetic . | . . . . . . . Robot Hit Streak 44 | 4 3 19 14 44 16 12 Robot Miss Streak 3 | 1 1 3 1 2 3 1 Penetration Max . | . . . . . . . Secondary Targets 2 | . . . . 2 . . Max Gunslinging Chain 1 | . . . . 1 . . Shots Hit Robots 270 | 15 3 49 27 116 36 24 Core Hits 103 | 7 1 19 9 46 6 15 Critical Kills . | . . . . . . . Critical Parts Destroyed 1 | . . . . . . 1 Critical Strikes 5 | . . 1 . 2 1 1 Burn 4 | . . 1 . 2 1 . Destroy 1 | . . . . . . 1 Melee Attacks . | . . . . . . . Impact . | . . . . . . . Slashing . | . . . . . . . Piercing . | . . . . . . . Sneak Attacks . | . . . . . . . Combat Hostiles . | . . . . . . . Follow-up Attacks . | . . . . . . . Damage Inflicted 4337 | 185 42 827 455 1642 610 576 Guns 3946 | 185 42 661 455 1642 610 351 Cannons . | . . . . . . . Explosions 384 | . . 166 . . . 218 Melee . | . . . . . . . Ramming 7 | . . . . . . 7 Kinetic 1806 | 185 42 557 . 338 367 317 Thermal 2140 | . . 104 455 1304 243 34 Explosive 384 | . . 166 . . . 218 Electromagnetic . | . . . . . . . Impact . | . . . . . . . Slashing . | . . . . . . . Piercing . | . . . . . . . Highest Corruption 1 | . . . . 1 1 1 Average Corruption 1 | . . . . 1 1 1 Corruption Purged . | . . . . . . . Corruption Blocked . | . . . . . . . Effects 16 | . . . . 12 3 1 Message Errors 4 | . . . . 4 . . Matter Fused 4 | . . . . 3 1 . Heat Flow Errors 4 | . . . . 3 1 . Energy Discharges 2 | . . . . 1 1 . Parts Rejected 1 | . . . . 1 . . Data Loss (minor) 1 | . . . . . . 1 Overload Shots . | . . . . . . . Overflow Damage . | . . . . . . . Projectiles . | . . . . . . . Explosions . | . . . . . . . Melee . | . . . . . . . Knockbacks . | . . . . . . . Impact . | . . . . . . . Kinetic . | . . . . . . . Secondary . | . . . . . . . Self-Inflicted Damage 82 | . . . . . . 82 Shots 3 | . . . . . . 3 Rammed 1 | . . . . . . 1 Targets Rammed 1 | . . . . . . 1 Kicked . | . . . . . . . Crushed . | . . . . . . . Highest Temperature 367 | . 20 114 367 345 132 48 Average Temperature 84 | . 10 27 136 92 47 23 Received Heat Transfer 1761 | . . 165 126 783 . 687 Effects 1 | . . . 1 . . . Short Circuit 1 | . . . 1 . . . Siege Activations . | . . . . . . . Martial Activations . | . . . . . . . Shielding Activations . | . . . . . . . Robots Disrupted . | . . . . . . . Combat Hostiles . | . . . . . . . Robots Corrupted . | . . . . . . . Combat Hostiles . | . . . . . . . Parts Fried . | . . . . . . . Impact Corruptions . | . . . . . . . Robots Melted 1 | . . . 1 . . . Combat Hostiles 1 | . . . 1 . . . Parts Melted 6 | . . . 2 1 3 . Heat Transferred 4930 | . . 296 999 3043 518 74 Parts Sabotaged . | . . . . . . . Parts Stolen . | . . . . . . . Parts Stripped . | . . . . . . . Power Chain Reactions . | . . . . . . . Alert | -11 -10 -9 -8 -8 -7 -7 ------- Run | Yrd Mat Mat Mat Gar Fac Sto Maximum Alert Level 2 | . . . . 2 1 . Low Security (%) 83 | 100 100 100 100 54 90 100 Level 1 11 | . . . . 29 9 . Level 2 4 | . . . . 16 . . Level 3 . | . . . . . . . Level 4 . | . . . . . . . Level 5 . | . . . . . . . High Security . | . . . . . . . Max Security . | . . . . . . . Peak Influence 524 | 15 15 155 70 524 273 50 Initial 272 | . . . 4 39 272 16 Average 97 | 1 1 54 20 235 48 5 Influence Increases 1483 | 30 22 310 158 680 137 146 Destroy 0b10 Robot/C 720 | . . 160 100 360 60 40 Destroy 0b10 Robot/NC 80 | 30 5 25 . 15 . 5 Destroy Leader 148 | . 2 36 40 20 30 20 Allied During Kill 6 | . . . . 6 . . Trap Triggered on 0b10 30 | . . . . 30 . . Successful Hack 16 | . . . 2 14 . . Disable Machine 150 | . 15 30 15 60 30 . Anti-Garrison Action 100 | . . . . 100 . . Destroy Structure 38 | . . 14 1 . 2 21 Partial Spotted 15 | . . 15 . . . . Lose Combat Pursuer 180 | . . 30 . 75 15 60 Influence Decreases 1433 | 30 22 299 109 221 619 133 Entered New Map 296 | . . . 7 21 247 21 Time Decay 845 | 30 22 289 102 . 372 30 Lost Part 211 | . . 10 . 120 . 81 Lost Ally 80 | . . . . 80 . . Purge Threat 1 | . . . . . . 1 Squads Dispatched 8 | . . 1 2 . 4 1 Investigation 2 | . . . . . 2 . Extermination 2 | . . . . . 2 . Reinforcement 2 | . . 1 . . . 1 Assault . | . . . . . . . Garrison 2 | . . . 2 . . . Intercept . | . . . . . . . Searches Triggered . | . . . . . . . Construction Impeded 1 | . . . . . . 1 Haulers Reinforced . | . . . . . . . Active Scanning Responses . | . . . . . . . Cargo Convoy Interrupts . | . . . . . . . Stealth | -11 -10 -9 -8 -8 -7 -7 --------- Run | Yrd Mat Mat Mat Gar Fac Sto Distress Signals 4 | . . 1 . 1 . 2 Communications Jammed . | . . . . . . . Distress Signals . | . . . . . . . Times Spotted 69 | . 2 15 5 24 5 18 Peak Tracking Total 13 | . 2 5 2 8 1 13 Tactical Retreats 5 | . . 1 . 2 1 1 Traps | -11 -10 -9 -8 -8 -7 -7 ------- Run | Yrd Mat Mat Mat Gar Fac Sto Traps Triggered 13 | . . . . 11 2 . Indirectly . | . . . . . . . Trap Hack Attempts . | . . . . . . . Triggered . | . . . . . . . Disarmed . | . . . . . . . Reprogrammed . | . . . . . . . Reused 3 | . . . . 3 . . Traps Extracted . | . . . . . . . Installed 4 | . . . . 4 . . Triggered 3 | . . . . 3 . . Most Traps Carried 4 | . . . . 4 . . Machines | -11 -10 -9 -8 -8 -7 -7 ---------- Run | Yrd Mat Mat Mat Gar Fac Sto Machines Disabled 10 | . 1 2 1 4 2 . Max in Single Turn 1 | . 1 1 1 1 1 . Machines Repaired . | . . . . . . . Machines Dismantled . | . . . . . . . Machines Sabotaged . | . . . . . . . Overloaded Fab Kills . | . . . . . . . Hacking | -11 -10 -9 -8 -8 -7 -7 --------- Run | Yrd Mat Mat Mat Gar Fac Sto Machines Accessed 12 | . . 1 3 2 4 2 Terminals 8 | . . 1 1 2 2 2 Fabricators 1 | . . . . . 1 . Repair Stations 1 | . . . . . 1 . Recycling Units . | . . . . . . . Scanalyzers 1 | . . . 1 . . . Garrison Access 1 | . . . 1 . . . Total Hacks 27 | . . 2 10 3 8 4 Successful 14 | . . 1 5 1 5 2 Failed 12 | . . 1 4 2 3 2 Catastrophic 2 | . . . . . 1 1 Database Lockouts 1 | . . . 1 . . . Manual 4 | . . 2 . . 2 . Terminals 13 | . . 2 2 3 2 4 Fabricators 2 | . . . . . 2 . Repair Stations 4 | . . . . . 4 . Recycling Units . | . . . . . . . Scanalyzers 6 | . . . 6 . . . Garrison Access 2 | . . . 2 . . . Terminal Hacks 4 | . . 1 . 1 . 2 Open Door 1 | . . . . . . 1 Emergency Access Points 1 | . . . . 1 . . Terminal Index 1 | . . 1 . . . . Unreport Threat 1 | . . . . . . 1 Fabricator Hacks 2 | . . . . . 2 . Load Schematic 1 | . . . . . 1 . Build 1 | . . . . . 1 . Repair Station Hacks 2 | . . . . . 2 . Scan Component 1 | . . . . . 1 . Repair 1 | . . . . . 1 . Recycling Unit Hacks . | . . . . . . . Scanalyzer 4 | . . . 4 . . . Insert Component 1 | . . . 1 . . . Analyze 2 | . . . 2 . . . Retrieve Study 1 | . . . 1 . . . Garrison Access Hacks 1 | . . . 1 . . . Unlock Access 1 | . . . 1 . . . Unauthorized Hacks 1 | . . . . . 1 . Terminals . | . . . . . . . Fabricators . | . . . . . . . Repair Stations 1 | . . . . . 1 . Patch 1 | . . . . . 1 . Recycling Units . | . . . . . . . Scanalyzers . | . . . . . . . Garrison Access . | . . . . . . . Data Cores Recovered 1 | . . . . . . 1 Used . | . . . . . . . Hacking Detections 8 | . . 1 1 1 4 1 Full Trace Events 1 | . . . . . 1 . Feedback Events . | . . . . . . . Feedback Blocked . | . . . . . . . Robot Schematics Acquired . | . . . . . . . Robots Built . | . . . . . . . Authchips . | . . . . . . . Time . | . . . . . . . Total Robot Build Rating . | . . . . . . . Part Schematics Acquired 1 | . . . 1 . . . Parts Built 2 | . . . . . 2 . Authchips . | . . . . . . . Time 36 | . . . . . 36 . Total Part Build Rating 6 | . . . . . 6 . Part Studies Acquired 1 | . . . 1 . . . Parts Repaired 1 | . . . . . 1 . Time 38 | . . . . . 38 . Parts Recycled . | . . . . . . . Recycled Matter . | . . . . . . . Retrieved Matter . | . . . . . . . Retrieved Components . | . . . . . . . Parts Scanalyzed 1 | . . . 1 . . . Part Schematics Acquired 1 | . . . 1 . . . Parts Damaged . | . . . . . . . Bothacking | -11 -10 -9 -8 -8 -7 -7 ------------ Run | Yrd Mat Mat Mat Gar Fac Sto Used RIF Installer 1 | . . . . 1 . . Robots Hacked . | . . . . . . . Non-combat . | . . . . . . . Combat . | . . . . . . . Robot Hacks Applied . | . . . . . . . Relay Couplers Released . | . . . . . . . Fabnet Peak Effective % . | . . . . . . . Robots Rewired 4 | . . . . 4 . . Allies Hacked . | . . . . . . . Hacks Repelled . | . . . . . . . Allies | -11 -10 -9 -8 -8 -7 -7 -------- Run | Yrd Mat Mat Mat Gar Fac Sto Total Allies 4 | . . . . 4 . . Largest Group 4 | . . . . 4 . . Highest-Rated Group 20 | . . . . 20 . . Highest-Rated Ally 5 | . . . . 5 . . Total Orders . | . . . . . . . Ally Attacks 30 | . . . . 30 . . Total Damage 136 | . . . . 136 . . Kills 2 | . . . . 2 . . Allies Corrupted . | . . . . . . . Allies Melted . | . . . . . . . Intel | -11 -10 -9 -8 -8 -7 -7 ------- Run | Yrd Mat Mat Mat Gar Fac Sto Active Infowar (turns) 4782 | 75 228 770 334 1436 1762 177 Optics 4591 | . 112 770 334 1436 1762 177 Sensors 2539 | . . 770 241 3 1455 70 Seismic 370 | 75 116 179 . . . . Machine Analysis 34 | . . . . . . 34 Robot Analysis Total . | . . . . . . . Derelict Logs Recovered . | . . . . . . . Drone Launches . | . . . . . . . Drone Recoveries . | . . . . . . . Exploration | -11 -10 -9 -8 -8 -7 -7 ------------- Run | Yrd Mat Mat Mat Gar Fac Sto Turns Passed 4872 | 165 228 770 334 1436 1762 177 Spaces Moved 1983 | 73 114 255 160 652 602 127 Core 68 | 8 . . . . . 60 Treads 791 | 65 114 255 160 163 2 32 Legs . | . . . . . . . Wheels 1124 | . . . . 489 600 35 Hover . | . . . . . . . Flight . | . . . . . . . Fastest Speed 50 | 50 160 145 145 115 115 50 Average Speed 141 | 151 160 158 147 158 118 95 Slowest Speed 305 | 160 160 160 225 225 305 225 Overloaded Moves . | . . . . . . . Propulsion Burnouts . | . . . . . . . Robots Hopped . | . . . . . . . Potential Cave-ins . | . . . . . . . Cave-ins Triggered . | . . . . . . . Exploration Rate (%) 26 | 3 28 23 16 66 15 34 Regions Visited 6 Branch Regions 1 Pre-discovered Areas . | . . . . . . . Known Exits Taken 3 | . . 1 1 . 1 . Unknown Exits Taken 2 | 1 1 . . . . . Scrap Searched . | . . . . . . . Spaces Dug 4 | . . 3 1 . . . Terrain Destroyed 38 | . . 12 1 . 2 23 Melee . | . . . . . . . Projectile 6 | . . 3 1 . 2 . AOE 32 | . . 9 . . . 23 Terrain Rammed . | . . . . . . . Walls Destroyed . | . . . . . . . Machines Disabled . | . . . . . . . Actions | -11 -10 -9 -8 -8 -7 -7 --------- Run | Yrd Mat Mat Mat Gar Fac Sto Total 3679 | 102 150 541 220 896 1616 154 Wait 1277 | 8 24 212 30 38 965 . Move 1977 | 72 113 254 160 650 601 127 Hop . | . . . . . . . Pick Up 41 | 4 4 10 2 13 8 . Fast Attach 24 | 7 1 3 . 4 5 4 Attach 24 | . . 4 2 10 2 6 Detach 3 | . 1 1 . 1 . . Swap 37 | . 2 8 10 11 6 . Drop 29 | . 1 9 1 7 9 2 Fire 172 | 11 4 40 15 68 20 14 Melee . | . . . . . . . Ram . | . . . . . . . Kick . | . . . . . . . Crush 1 | . . . . . . 1 Escape Stasis 40 | . . . . 40 . . Rewire 50 | . . . . 50 . . Trap 4 | . . . . 4 . . Miscellaneous . | . . . . . . . Route ------- -11/Scrapyard -10/Materials -9/Materials -8/Materials -8/Garrison (discovered 3 exits: *Fac x3) -7/Factory (discovered 2 exits: *Fac / *Sto) -7/Storage History --------- Turn | Location | Event 14 | -11/Scrapyard | Discovered new exit (range 14) 166 | -11/Scrapyard | Entered Materials 303 | -10/Materials | Build established: Mutant 367 | -10/Materials | Discovered new exit (range 18) 394 | -10/Materials | Entered another Materials area 394 | -9/Materials | Evolved 2 slots: Utility x2 756 | -9/Materials | Discovered new exit (range 13) 969 | -9/Materials | Build established: Skirmisher 1163 | -9/Materials | Identified exit to Materials 1164 | -9/Materials | Entered another Materials area 1164 | -8/Materials | Evolved 2 slots: Propulsion x1, Weapon x1 1279 | -8/Materials | Central database locked down 1329 | -8/Materials | Garrison activated, responded to threat 1498 | -8/Materials | Identified exit to Garrison 1498 | -8/Materials | Entered Garrison 1692 | -8/Garrison | Triggered checkpoint 1930 | -8/Garrison | Triggered checkpoint 1960 | -8/Garrison | Core integrity fell below 50% 1986 | -8/Garrison | Lost 6 parts (1p3n1u1w) 1994 | -8/Garrison | Build established: Mutant 2264 | -8/Garrison | Triggered checkpoint 2335 | -8/Garrison | Discovered new exit (range 19) 2368 | -8/Garrison | Identified exit to Factory 2438 | -8/Garrison | Triggered checkpoint 2510 | -8/Garrison | Discovered exit to Factory (range 14) 2522 | -8/Garrison | Installed Relay Interface Framework 2536 | -8/Garrison | Core integrity fell below 20% 2716 | -8/Garrison | Triggered checkpoint 2769 | -8/Garrison | Lost 3 allies 2816 | -8/Garrison | Triggered checkpoint 2911 | -8/Garrison | Discovered exit to Factory (range 13) 2916 | -8/Garrison | Triggered checkpoint 2934 | -8/Garrison | Entered Factory 2934 | -7/Factory | Evolved 2 slots: Propulsion x1, Utility x1 3046 | -7/Factory | Repaired Pulse Rifle+ 3219 | -7/Factory | Build established: Scavenger-Skirmisher 3821 | -7/Factory | Fabricated Adv. Treads (x2) 4078 | -7/Factory | Discovered new exit (range 5) 4100 | -7/Factory | Identified exit to Factory 4588 | -7/Factory | Discovered new exit (range 15) 4624 | -7/Factory | Identified exit to Storage 4696 | -7/Factory | Entered Storage 4806 | -7/Storage | Core integrity fell below 50% 4862 | -7/Storage | Core integrity fell below 20% 4873 | -7/Storage | Self-destructed Last Messages --------------- 04837_ K-01 Serf collects debris. 04838_ Adv. Treads destroyed. 04838_ Imp. Propulsion Shielding destroyed. 04840_ Dropped Hcp. Storage Unit. 04841_ Dropped Imp. Light Armor Plating. 04841_ Med. Treads destroyed. 04841_ K-01 Serf collects debris. 04842_ Acquired Hacking Suite. 04844_ Penetrated by Slug. 04853_ >> Machine Analyzer network decryption results: 04853_ Terminal x1 04865_ Hacking Suite destroyed. 04867_ >> Machine Analyzer network decryption results: 04867_ Repair Station x1 04867_ >> Machine Analyzer network decryption results: 04867_ Terminal x1 04870_ K-01 Serf collects debris. Map ----- +----------------------------------------------------+ | | | | | | | | | | | | | | | ????????????????????????????????????????????????? | | ????????????????????????????????????????????????? | | ????????????????????????????????????????????????? | | ????????????????????????????????????????????????? | | ?????????????????????????#######??????##????????? | | ?????????????????????????+ + ????? #????????? | | ?????????????????????????# #???? """ #????????? | | ########################## #?? """ #????????? | | # """ #????????? | | + " " """ ?????????? | | # "R" """ ?????????? | | ####+#########+#########s###+#?""" #????????? | | ?????????# ## #???? #????????? | | ???????""# """ ## ! #???"?""###????????? | | ???????""# """ # [ #???"R""???????????? | | ???????T"# """ ## ! #???"""????????????? | | ?"""???""# ## #????????"""""?????? | | ?"""???""# """ ## #????????""T""?????? | | ?"""?????# """ ## k@ #??????????????????? | | ?????????# """ ## #??????????????????? | | ?????????# ############??????????????????? | | ?????????#+########?????????????????????????????? | | ?????????# #???????#####????????????????????????? | | ?????????# #???????#! !#????????????????????????? | | ?????????# #????#??#! !#????????????????????????? | | ???#?????# #?? #??#! !#????????????????????????? | | ???# ##### # #??#! #????????????????????????? | | ???# + #?## #????????????????????????? | | ???# # #?#T #????????????????????????? | | ???# #?? #?## #????????????????????????? | | ???# ##########/######## ###??????????????? | | ???# ##### ## #??????????????? | | ???#?????# ## +??????????????? | | ?????????# ## #??????????????? | | ?????????# ##########"########## #??????????????? | | ?????????# #### !!! #???????????????????? | | ?????????# / != #???????????????????? | | ?????????# #### *!! % #???????????????????? | | ?????????# #??# #???????????????????? | | ?????????# #??# #???????????????????? | | ?????????# #??# ! ###?????????????????? | | ?????????#+################## #??#??????##??????? | | ?????????? [ ?# ## ### #??????? | +----------------------------------------------------+ Best States ------------- Heat Dissipation 45 Energy Generation 14 Energy Capacity 250 Matter Stores 300 Matter Capacity 300 Sight Range 20 Robot Scan Range 15 Terrain Scan Density 10 Propulsion Shielding 66 Evasion (%) 50 Recoil Reduction 4 Salvage Targeting 2 Offensive Hacking 20 Item Schematics ----------------- Adv. Treads | -8/Materials | Scanalyzed Robot Schematics ------------------ None Fabricated ------------ Adv. Treads | x2 | -7/Factory Repaired ---------- Pulse Rifle | 16% | -7/Factory Studied --------- Pulse Rifle | -8/Materials | Hacked Alien Tech Used ----------------- None Achievements -------------- None Challenges ------------ None Game ------ Seed RestorationUltimateSource Manual? 0 Play Time 00:39:23 Cumulative 159.3 hours Start 2026.04.07 @ 18:35:33 End 2026.04.07 @ 19:12:14 Sessions 1 Manual Loads 0 Difficulty Rogue Special Mode None Game No. 229 Rogue 229 Adventurer 0 Explorer 0 Win Type - Total 1 Types 1/0/0/0/0/0/0/0/0/0 Lore% 69 Gallery% 58 Achievement% 44 Wizard Run 0 Options --------- Layout 2 ASCII 0 Keyboard 0 Movement Mouse Keybinds 0 Fullscreen 1 Font 24/Smallcaps Map View 50x44 Zoom Use 0% Tactical HUD 1 Map Filters NONE Filters NONE Steam 1 RUN: a9177dad-0a0c-4335-9dfb-de8b1c726a1a